[Event "Titled Tuesday Blitz March 21 Late 2023"]
[White "Bolanos, Fernando"]
[Black "Hajiyev, Kanan"]
[WhiteFideId "3304094"]
[BlackFideId "13404148"]
[WhiteElo "2166"]
[BlackElo "2103"]
[Result "0-1"]
[Round "11"]
[TimeControl "180+2"]
[Date "2023.03.21"]
[WhiteClock "0:00:06"]
[BlackClock "0:00:19"]

1. e4 {[%clk 0:02:56]}  c6 {[%clk 0:03:00]} 2. d4 {[%clk 0:02:51]}  d5 {[%clk 0:03:00]} 3. e5 {[%clk 0:02:51]}  a6 {[%clk 0:03:00]} 4. f4 {[%clk 0:02:47]}  Nh6 {[%clk 0:02:59]} 5. Nf3 {[%clk 0:02:48]}  Bg4 {[%clk 0:02:57]} 6. Bd3 {[%clk 0:02:46]}  e6 {[%clk 0:02:57]} 7. Nc3 {[%clk 0:02:46]}  c5 {[%clk 0:02:57]} 8. Ne2 {[%clk 0:02:46]}  cxd4 {[%clk 0:02:56]} 9. Nexd4 {[%clk 0:02:46]}  Nc6 {[%clk 0:02:55]} 10. Be3 {[%clk 0:02:45]}  Nxd4 {[%clk 0:02:51]} 11. Bxd4 {[%clk 0:02:44]}  Qc7 {[%clk 0:02:50]} 12. c3 {[%clk 0:02:43]}  Bc5 {[%clk 0:02:49]} 13. Qa4+ {[%clk 0:02:43]}  Kf8 {[%clk 0:02:41]} 14. Bxc5+ {[%clk 0:02:40]}  Qxc5 {[%clk 0:02:41]} 15. Nd4 {[%clk 0:02:41]}  g6 {[%clk 0:02:28]} 16. Qb4 {[%clk 0:01:23]}  Qxb4 {[%clk 0:02:22]} 17. cxb4 {[%clk 0:01:24]}  Rc8 {[%clk 0:02:17]} 18. Kd2 {[%clk 0:01:24]}  Bf5 {[%clk 0:02:16]} 19. h3 {[%clk 0:01:22]}  Bxd3 {[%clk 0:02:16]} 20. Kxd3 {[%clk 0:01:22]}  Rc4 {[%clk 0:02:15]} 21. a3 {[%clk 0:01:15]}  Ke7 {[%clk 0:01:55]} 22. g4 {[%clk 0:01:10]}  Rhc8 {[%clk 0:01:54]} 23. Ne2 {[%clk 0:00:57]}  Ng8 {[%clk 0:01:41]} 24. Rac1 {[%clk 0:00:55]}  f6 {[%clk 0:01:28]} 25. b3 {[%clk 0:00:20]}  Rxc1 {[%clk 0:01:19]} 26. Rxc1 {[%clk 0:00:21]}  Rxc1 {[%clk 0:01:17]} 27. Nxc1 {[%clk 0:00:22]}  fxe5 {[%clk 0:01:17]} 28. fxe5 {[%clk 0:00:22]}  Kd7 {[%clk 0:01:13]} 29. Ne2 {[%clk 0:00:19]}  Ne7 {[%clk 0:01:12]} 30. Nd4 {[%clk 0:00:15]}  Nc6 {[%clk 0:01:12]} 31. Nf3 {[%clk 0:00:13]}  h6 {[%clk 0:01:09]} 32. h4 {[%clk 0:00:11]}  Ke7 {[%clk 0:00:55]} 33. Kc3 {[%clk 0:00:11]}  Kf7 {[%clk 0:00:55]} 34. a4 {[%clk 0:00:11]}  Ke7 {[%clk 0:00:55]} 35. b5 {[%clk 0:00:11]}  axb5 {[%clk 0:00:54]} 36. axb5 {[%clk 0:00:12]}  Na5 {[%clk 0:00:51]} 37. Nd4 {[%clk 0:00:03]}  Kd7 {[%clk 0:00:44]} 38. Kb4 {[%clk 0:00:02]}  b6 {[%clk 0:00:44]} 39. Kc3 {[%clk 0:00:02]}  Nb7 {[%clk 0:00:40]} 40. b4 {[%clk 0:00:03]}  Nd8 {[%clk 0:00:40]} 41. Ne2 {[%clk 0:00:03]}  Nf7 {[%clk 0:00:37]} 42. Kd4 {[%clk 0:00:04]}  g5 {[%clk 0:00:35]} 43. h5 {[%clk 0:00:04]}  Nd8 {[%clk 0:00:31]} 44. Ng1 {[%clk 0:00:03]}  Ke7 {[%clk 0:00:31]} 45. Nf3 {[%clk 0:00:04]}  Nb7 {[%clk 0:00:30]} 46. Ne1 {[%clk 0:00:04]}  Nd8 {[%clk 0:00:30]} 47. Nf3 {[%clk 0:00:05]}  Kf7 {[%clk 0:00:30]} 48. Ne1 {[%clk 0:00:05]}  Kg7 {[%clk 0:00:29]} 49. Nc2 {[%clk 0:00:05]}  Kf7 {[%clk 0:00:27]} 50. Ke3 {[%clk 0:00:06]}  Ke7 {[%clk 0:00:27]} 51. Nd4 {[%clk 0:00:06]}  Nf7 {[%clk 0:00:26]} 52. Nc6+ {[%clk 0:00:06]}  Kd7 {[%clk 0:00:26]} 53. Kd4 {[%clk 0:00:07]}  Nd8 {[%clk 0:00:25]} 54. Nb8+ {[%clk 0:00:06]}  Kc7 {[%clk 0:00:23]} 55. Na6+ {[%clk 0:00:04]}  Kb7 {[%clk 0:00:24]} 56. Kd3 {[%clk 0:00:04]}  Nf7 {[%clk 0:00:24]} 57. Kd4 {[%clk 0:00:05]}  Nh8 {[%clk 0:00:22]} 58. Ke3 {[%clk 0:00:05]}  Nf7 {[%clk 0:00:21]} 59. Kd4 {[%clk 0:00:06]}  Kc8 {[%clk 0:00:21]} 60. Nc5 {[%clk 0:00:04]}  bxc5+ {[%clk 0:00:20]} 61. bxc5 {[%clk 0:00:05]}  Kc7 {[%clk 0:00:20]} 62. Kc3 {[%clk 0:00:05]}  Nxe5 {[%clk 0:00:20]} 63. Kb4 {[%clk 0:00:05]}  Nd3+ {[%clk 0:00:19]} 64. Kc3 {[%clk 0:00:06]}  Nxc5 {[%clk 0:00:19]} 0-1


[Site "https://www.chess.com"]

[Event "Titled Tuesday Blitz March 21 Late 2023"]
[White "Kashefi, Amir Hosein"]
[Black "Abduzhaparov"]
[WhiteFideId "12557935"]
[WhiteElo "2078"]
[BlackElo "2376"]
[Result "0-1"]
[Round "11"]
[TimeControl "180+2"]
[Date "2023.03.21"]
[WhiteClock "0:00:02"]
[BlackClock "0:00:05"]

1. d4 {[%clk 0:02:50]}  d6 {[%clk 0:03:00]} 2. c4 {[%clk 0:02:48]}  Nf6 {[%clk 0:03:01]} 3. Nc3 {[%clk 0:02:48]}  Nbd7 {[%clk 0:03:01]} 4. e4 {[%clk 0:02:49]}  e5 {[%clk 0:03:02]} 5. Be3 {[%clk 0:02:48]}  Be7 {[%clk 0:03:02]} 6. Be2 {[%clk 0:02:47]}  O-O {[%clk 0:03:01]} 7. Nf3 {[%clk 0:02:46]}  Re8 {[%clk 0:03:01]} 8. h3 {[%clk 0:02:45]}  exd4 {[%clk 0:03:00]} 9. Nxd4 {[%clk 0:02:45]}  Nc5 {[%clk 0:03:01]} 10. f3 {[%clk 0:02:44]}  c6 {[%clk 0:02:50]} 11. O-O {[%clk 0:02:43]}  d5 {[%clk 0:02:49]} 12. cxd5 {[%clk 0:02:28]}  cxd5 {[%clk 0:02:50]} 13. e5 {[%clk 0:02:29]}  Nh5 {[%clk 0:02:49]} 14. f4 {[%clk 0:02:28]}  Ng3 {[%clk 0:02:48]} 15. Bf3 {[%clk 0:02:20]}  Nxf1 {[%clk 0:02:47]} 16. Qxf1 {[%clk 0:02:20]}  Ne4 {[%clk 0:02:40]} 17. Rd1 {[%clk 0:02:18]}  f5 {[%clk 0:02:27]} 18. Nde2 {[%clk 0:01:48]}  Be6 {[%clk 0:02:11]} 19. Nxe4 {[%clk 0:01:47]}  fxe4 {[%clk 0:02:09]} 20. Bxe4 {[%clk 0:01:48]}  Qa5 {[%clk 0:01:39]} 21. Bb1 {[%clk 0:01:45]}  Bc5 {[%clk 0:01:35]} 22. Nd4 {[%clk 0:01:44]}  Bxd4 {[%clk 0:01:19]} 23. Bxd4 {[%clk 0:01:45]}  Rf8 {[%clk 0:01:12]} 24. f5 {[%clk 0:01:45]}  Qa4 {[%clk 0:01:00]} 25. g4 {[%clk 0:01:40]}  Rae8 {[%clk 0:00:54]} 26. Qd3 {[%clk 0:01:37]}  Bd7 {[%clk 0:00:49]} 27. e6 {[%clk 0:01:37]}  Bb5 {[%clk 0:00:45]} 28. Qf3 {[%clk 0:01:25]}  Rxe6 {[%clk 0:00:37]} 29. b3 {[%clk 0:01:22]}  Re1+ {[%clk 0:00:35]} 30. Kf2 {[%clk 0:00:48]}  Re2+ {[%clk 0:00:22]} 31. Kg3 {[%clk 0:00:23]}  Qb4 {[%clk 0:00:17]} 32. Qxd5+ {[%clk 0:00:22]}  Kh8 {[%clk 0:00:18]} 33. Qc5 {[%clk 0:00:17]}  Qxc5 {[%clk 0:00:12]} 34. Bxc5 {[%clk 0:00:18]}  Rc8 {[%clk 0:00:12]} 35. a4 {[%clk 0:00:18]}  Bc6 {[%clk 0:00:07]} 36. Bd3 {[%clk 0:00:14]}  Rg2+ {[%clk 0:00:06]} 37. Kf4 {[%clk 0:00:14]}  h6 {[%clk 0:00:05]} 38. Bd4 {[%clk 0:00:11]}  Rd8 {[%clk 0:00:03]} 39. Bf1 {[%clk 0:00:11]}  Rf2+ {[%clk 0:00:01]} 40. Ke3 {[%clk 0:00:02]}  Rxf1 {[%clk 0:00:02]} 41. Rxf1 {[%clk 0:00:01]}  Re8+ {[%clk 0:00:02]} 42. Kd3 {[%clk 0:00:02]}  Rd8 {[%clk 0:00:03]} 43. Kc3 {[%clk 0:00:02]}  b5 {[%clk 0:00:03]} 44. axb5 {[%clk 0:00:01]}  Bxb5 {[%clk 0:00:04]} 45. f6 {[%clk 0:00:02]}  Rc8+ {[%clk 0:00:04]} 46. Kb2 {[%clk 0:00:02]}  Bxf1 {[%clk 0:00:05]} 0-1


[Site "https://www.chess.com"]

[Event "Titled Tuesday Blitz March 21 Late 2023"]
[White "Golubev, Mikhail"]
[Black "Vadim_Galchenko"]
[WhiteFideId "14100983"]
[WhiteElo "2374"]
[BlackElo "2266"]
[Result "1-0"]
[Round "11"]
[TimeControl "180+2"]
[Date "2023.03.21"]
[WhiteClock "0:01:41"]
[BlackClock "0:02:05"]

1. e4 {[%clk 0:03:00]}  e6 {[%clk 0:02:58]} 2. d4 {[%clk 0:02:59]}  d5 {[%clk 0:02:58]} 3. Nc3 {[%clk 0:02:59]}  Nf6 {[%clk 0:02:58]} 4. e5 {[%clk 0:02:55]}  Ne4 {[%clk 0:02:58]} 5. Nce2 {[%clk 0:02:50]}  f6 {[%clk 0:02:56]} 6. f3 {[%clk 0:02:43]}  Ng5 {[%clk 0:02:56]} 7. exf6 {[%clk 0:02:34]}  Qxf6 {[%clk 0:02:50]} 8. Ng3 {[%clk 0:02:22]}  Bd6 {[%clk 0:02:40]} 9. f4 {[%clk 0:02:05]}  Ne4 {[%clk 0:02:10]} 10. Nxe4 {[%clk 0:02:04]}  dxe4 {[%clk 0:02:11]} 11. Nh3 {[%clk 0:01:45]}  c5 {[%clk 0:02:05]} 12. dxc5 {[%clk 0:01:43]}  Bxc5 {[%clk 0:02:05]} 13. Qh5+ {[%clk 0:01:41]} 1-0


[Site "https://www.chess.com"]

[Event "Titled Tuesday Blitz March 21 Late 2023"]
[White "Stelmaszyk, Nico"]
[Black "Torres Dominguez, David"]
[WhiteFideId "16200462"]
[BlackFideId "2220857"]
[WhiteElo "2255"]
[BlackElo "1999"]
[Result "0-1"]
[Round "11"]
[TimeControl "180+2"]
[Date "2023.03.21"]
[WhiteClock "0:00:45"]
[BlackClock "0:00:26"]

1. e4 {[%clk 0:02:54]}  Nc6 {[%clk 0:02:58]} 2. d4 {[%clk 0:02:48]}  e5 {[%clk 0:02:58]} 3. dxe5 {[%clk 0:02:45]}  Nxe5 {[%clk 0:02:58]} 4. f4 {[%clk 0:02:45]}  Nc6 {[%clk 0:02:57]} 5. Nf3 {[%clk 0:02:43]}  Bb4+ {[%clk 0:02:55]} 6. Bd2 {[%clk 0:02:41]}  d5 {[%clk 0:02:49]} 7. e5 {[%clk 0:02:38]}  Bc5 {[%clk 0:02:32]} 8. Nc3 {[%clk 0:02:27]}  a6 {[%clk 0:02:32]} 9. Qe2 {[%clk 0:02:23]}  Nge7 {[%clk 0:02:31]} 10. O-O-O {[%clk 0:02:22]}  Be6 {[%clk 0:02:24]} 11. Be3 {[%clk 0:02:21]}  d4 {[%clk 0:02:13]} 12. Ne4 {[%clk 0:02:19]}  Ba7 {[%clk 0:02:08]} 13. a3 {[%clk 0:02:07]}  Qd5 {[%clk 0:02:05]} 14. Nc3 {[%clk 0:01:48]}  Qa5 {[%clk 0:02:04]} 15. Nxd4 {[%clk 0:01:46]}  Bxd4 {[%clk 0:01:59]} 16. Bxd4 {[%clk 0:01:47]}  O-O-O {[%clk 0:01:55]} 17. Bf2 {[%clk 0:01:42]}  Nd5 {[%clk 0:01:49]} 18. Nxd5 {[%clk 0:01:39]}  Rxd5 {[%clk 0:01:45]} 19. Rxd5 {[%clk 0:01:38]}  Qxd5 {[%clk 0:01:45]} 20. Kb1 {[%clk 0:01:31]}  Qa2+ {[%clk 0:01:40]} 21. Kc1 {[%clk 0:01:27]}  Qa1+ {[%clk 0:01:36]} 22. Kd2 {[%clk 0:01:28]}  Qxb2 {[%clk 0:01:37]} 23. Ke3 {[%clk 0:01:28]}  Qd4+ {[%clk 0:01:25]} 24. Kf3 {[%clk 0:01:25]}  Qb2 {[%clk 0:01:22]} 25. Kg3 {[%clk 0:01:21]}  Rd8 {[%clk 0:01:15]} 26. Qf3 {[%clk 0:01:13]}  Qxc2 {[%clk 0:01:10]} 27. h4 {[%clk 0:01:03]}  Qg6+ {[%clk 0:01:03]} 28. Kh2 {[%clk 0:01:02]}  Nd4 {[%clk 0:01:03]} 29. Qe3 {[%clk 0:00:55]}  Qc2 {[%clk 0:00:57]} 30. Bd3 {[%clk 0:00:50]}  Nf3+ {[%clk 0:00:50]} 31. gxf3 {[%clk 0:00:50]}  Rxd3 {[%clk 0:00:46]} 32. Qa7 {[%clk 0:00:51]}  b6 {[%clk 0:00:34]} 33. Kg3 {[%clk 0:00:47]}  Bd5 {[%clk 0:00:31]} 34. Qxa6+ {[%clk 0:00:45]}  Kb8 {[%clk 0:00:26]} 0-1


[Site "https://www.chess.com"]

[Event "Titled Tuesday Blitz March 21 Late 2023"]
[White "Forgacs, Attila Jr."]
[Black "Ladan, Nicholas"]
[WhiteFideId "773654"]
[BlackFideId "30918855"]
[WhiteElo "2168"]
[BlackElo "2167"]
[Result "1-0"]
[Round "11"]
[TimeControl "180+2"]
[Date "2023.03.21"]
[WhiteClock "0:00:47"]
[BlackClock "0:00:03"]

1. e4 {[%clk 0:03:00]}  e5 {[%clk 0:03:00]} 2. Nf3 {[%clk 0:03:00]}  Nc6 {[%clk 0:02:59]} 3. Bb5 {[%clk 0:02:58]}  a6 {[%clk 0:02:58]} 4. Ba4 {[%clk 0:02:58]}  Nge7 {[%clk 0:02:59]} 5. c3 {[%clk 0:02:58]}  Ng6 {[%clk 0:02:54]} 6. d4 {[%clk 0:02:56]}  exd4 {[%clk 0:02:44]} 7. cxd4 {[%clk 0:02:56]}  d5 {[%clk 0:02:41]} 8. e5 {[%clk 0:02:52]}  Bb4+ {[%clk 0:02:39]} 9. Nc3 {[%clk 0:02:50]}  O-O {[%clk 0:02:38]} 10. O-O {[%clk 0:02:49]}  Bg4 {[%clk 0:02:35]} 11. Be3 {[%clk 0:02:44]}  b5 {[%clk 0:02:22]} 12. Bc2 {[%clk 0:02:42]}  Bxc3 {[%clk 0:02:09]} 13. bxc3 {[%clk 0:02:42]}  Na5 {[%clk 0:02:08]} 14. h3 {[%clk 0:02:41]}  Bxf3 {[%clk 0:02:04]} 15. Qxf3 {[%clk 0:02:42]}  Nc4 {[%clk 0:02:04]} 16. Rae1 {[%clk 0:02:21]}  c6 {[%clk 0:01:55]} 17. Qg4 {[%clk 0:02:18]}  Qh4 {[%clk 0:00:54]} 18. Qxh4 {[%clk 0:01:55]}  Nxh4 {[%clk 0:00:53]} 19. Bc1 {[%clk 0:01:49]}  a5 {[%clk 0:00:33]} 20. f4 {[%clk 0:01:48]}  f5 {[%clk 0:00:26]} 21. exf6 {[%clk 0:01:39]}  Rxf6 {[%clk 0:00:24]} 22. f5 {[%clk 0:01:25]}  Raf8 {[%clk 0:00:19]} 23. Bg5 {[%clk 0:01:22]}  Rxf5 {[%clk 0:00:11]} 24. Bxh4 {[%clk 0:01:12]}  Rxf1+ {[%clk 0:00:11]} 25. Rxf1 {[%clk 0:01:13]}  Rxf1+ {[%clk 0:00:11]} 26. Kxf1 {[%clk 0:01:14]}  Ne3+ {[%clk 0:00:11]} 27. Ke2 {[%clk 0:01:11]}  Nxc2 {[%clk 0:00:12]} 28. Be7 {[%clk 0:01:05]}  b4 {[%clk 0:00:06]} 29. Kd2 {[%clk 0:01:05]}  Na3 {[%clk 0:00:06]} 30. cxb4 {[%clk 0:01:05]}  Nc4+ {[%clk 0:00:06]} 31. Kc3 {[%clk 0:01:01]}  a4 {[%clk 0:00:06]} 32. b5 {[%clk 0:00:54]}  cxb5 {[%clk 0:00:04]} 33. Kb4 {[%clk 0:00:54]}  Kf7 {[%clk 0:00:04]} 34. Bc5 {[%clk 0:00:54]}  Ke6 {[%clk 0:00:02]} 35. Kxb5 {[%clk 0:00:54]}  Ne3 {[%clk 0:00:03]} 36. g4 {[%clk 0:00:49]}  Nd1 {[%clk 0:00:03]} 37. Kxa4 {[%clk 0:00:49]}  Nf2 {[%clk 0:00:03]} 38. Kb5 {[%clk 0:00:47]}  Nxh3 {[%clk 0:00:04]} 39. a4 {[%clk 0:00:48]}  g5 {[%clk 0:00:03]} 40. Kc6 {[%clk 0:00:47]} 1-0


[Site "https://www.chess.com"]

[Event "Titled Tuesday Blitz March 21 Late 2023"]
[White "Carbone, Diego"]
[Black "Castellanos Gomez, Alejandro"]
[WhiteFideId "3002179"]
[BlackFideId "22284141"]
[WhiteElo "2266"]
[BlackElo "2158"]
[Result "1-0"]
[Round "11"]
[TimeControl "180+2"]
[Date "2023.03.21"]
[WhiteClock "0:00:06"]
[BlackClock "0:00:06"]

1. d4 {[%clk 0:02:57]}  g6 {[%clk 0:02:55]} 2. c4 {[%clk 0:02:54]}  Bg7 {[%clk 0:02:54]} 3. g3 {[%clk 0:02:55]}  Nf6 {[%clk 0:02:54]} 4. Bg2 {[%clk 0:02:55]}  O-O {[%clk 0:02:54]} 5. Nc3 {[%clk 0:02:55]}  d6 {[%clk 0:02:52]} 6. Nf3 {[%clk 0:02:55]}  Nc6 {[%clk 0:02:50]} 7. O-O {[%clk 0:02:53]}  e5 {[%clk 0:02:49]} 8. dxe5 {[%clk 0:02:51]}  dxe5 {[%clk 0:02:47]} 9. Bg5 {[%clk 0:02:49]}  Be6 {[%clk 0:02:47]} 10. Qc1 {[%clk 0:02:48]}  Bxc4 {[%clk 0:02:42]} 11. Nd2 {[%clk 0:02:47]}  Be6 {[%clk 0:02:37]} 12. Nde4 {[%clk 0:02:42]}  Nd4 {[%clk 0:02:29]} 13. e3 {[%clk 0:02:10]}  Nxe4 {[%clk 0:02:23]} 14. Bxd8 {[%clk 0:02:06]}  Nxc3 {[%clk 0:02:22]} 15. Kh1 {[%clk 0:02:02]}  Nce2 {[%clk 0:02:20]} 16. Qxc7 {[%clk 0:02:00]}  Raxd8 {[%clk 0:02:04]} 17. exd4 {[%clk 0:01:55]}  exd4 {[%clk 0:02:05]} 18. Qxb7 {[%clk 0:01:53]}  d3 {[%clk 0:02:04]} 19. Rad1 {[%clk 0:01:51]}  Rb8 {[%clk 0:02:01]} 20. Qxa7 {[%clk 0:01:48]}  Rxb2 {[%clk 0:01:58]} 21. Rxd3 {[%clk 0:01:47]}  Rxa2 {[%clk 0:01:58]} 22. Qe3 {[%clk 0:01:44]}  Bc4 {[%clk 0:01:51]} 23. Rd2 {[%clk 0:01:40]}  Rxd2 {[%clk 0:01:29]} 24. Qxd2 {[%clk 0:01:41]}  Nc3 {[%clk 0:01:29]} 25. Rc1 {[%clk 0:01:37]}  Rb8 {[%clk 0:01:22]} 26. h3 {[%clk 0:01:22]}  Rb3 {[%clk 0:01:05]} 27. Qd8+ {[%clk 0:01:19]}  Bf8 {[%clk 0:01:04]} 28. Qc8 {[%clk 0:01:19]}  Be6 {[%clk 0:00:49]} 29. Qc7 {[%clk 0:00:36]}  Nb5 {[%clk 0:00:47]} 30. Qd8 {[%clk 0:00:36]}  Kg7 {[%clk 0:00:43]} 31. Ra1 {[%clk 0:00:33]}  Bc5 {[%clk 0:00:39]} 32. Ra8 {[%clk 0:00:21]}  Kh6 {[%clk 0:00:36]} 33. Qf6 {[%clk 0:00:19]}  Bd4 {[%clk 0:00:29]} 34. Qh4+ {[%clk 0:00:20]}  Kg7 {[%clk 0:00:29]} 35. Qd8 {[%clk 0:00:21]}  Rb1+ {[%clk 0:00:20]} 36. Kh2 {[%clk 0:00:20]}  Bxf2 {[%clk 0:00:20]} 37. Qf8+ {[%clk 0:00:16]}  Kf6 {[%clk 0:00:20]} 38. Qh8+ {[%clk 0:00:15]}  Kf5 {[%clk 0:00:15]} 39. g4+ {[%clk 0:00:15]}  Kf4 {[%clk 0:00:12]} 40. Qf6+ {[%clk 0:00:16]}  Ke3 {[%clk 0:00:13]} 41. Qe5+ {[%clk 0:00:10]}  Kd3 {[%clk 0:00:13]} 42. Qe4+ {[%clk 0:00:07]}  Kd2 {[%clk 0:00:13]} 43. Qxb1 {[%clk 0:00:08]}  Nc3 {[%clk 0:00:11]} 44. Rd8+ {[%clk 0:00:07]}  Bd5 {[%clk 0:00:04]} 45. Qb2+ {[%clk 0:00:06]}  Kd3 {[%clk 0:00:04]} 46. Rxd5+ {[%clk 0:00:05]}  Nxd5 {[%clk 0:00:05]} 47. Qxf2 {[%clk 0:00:05]}  Ne3 {[%clk 0:00:04]} 48. Qf3 {[%clk 0:00:05]}  Kd2 {[%clk 0:00:04]} 49. h4 {[%clk 0:00:05]}  f5 {[%clk 0:00:03]} 50. gxf5 {[%clk 0:00:05]}  gxf5 {[%clk 0:00:04]} 51. Bh3 {[%clk 0:00:05]}  Kd3 {[%clk 0:00:02]} 52. Bxf5+ {[%clk 0:00:04]}  Kd4 {[%clk 0:00:03]} 53. Bxh7 {[%clk 0:00:04]}  Nd5 {[%clk 0:00:02]} 54. Bg6 {[%clk 0:00:04]}  Ne7 {[%clk 0:00:02]} 55. h5 {[%clk 0:00:04]}  Ke5 {[%clk 0:00:03]} 56. Qg3+ {[%clk 0:00:04]}  Ke6 {[%clk 0:00:03]} 57. Bd3 {[%clk 0:00:05]}  Kf6 {[%clk 0:00:03]} 58. h6 {[%clk 0:00:05]}  Ke6 {[%clk 0:00:02]} 59. h7 {[%clk 0:00:06]}  Nf5 {[%clk 0:00:02]} 60. Bxf5+ {[%clk 0:00:05]}  Kf7 {[%clk 0:00:03]} 61. Qg6+ {[%clk 0:00:05]}  Ke7 {[%clk 0:00:04]} 62. Qg7+ {[%clk 0:00:05]}  Kd6 {[%clk 0:00:05]} 63. h8=Q {[%clk 0:00:05]}  Kd5 {[%clk 0:00:05]} 64. Qd8+ {[%clk 0:00:05]}  Kc4 {[%clk 0:00:06]} 65. Qgc7+ {[%clk 0:00:05]}  Kb5 {[%clk 0:00:07]} 66. Qdb8+ {[%clk 0:00:05]}  Ka6 {[%clk 0:00:06]} 67. Qca7# {[%clk 0:00:06]} 1-0


[Site "https://www.chess.com"]

[Event "Titled Tuesday Blitz March 21 Late 2023"]
[White "Stachanczyk, Jacek"]
[Black "Kubatko, Ivan"]
[WhiteFideId "1116657"]
[BlackFideId "24111473"]
[WhiteElo "2084"]
[BlackElo "2285"]
[Result "0-1"]
[Round "11"]
[TimeControl "180+2"]
[Date "2023.03.21"]
[WhiteClock "0:00:17"]
[BlackClock "0:00:05"]

1. e4 {[%clk 0:02:50]}  d5 {[%clk 0:02:59]} 2. exd5 {[%clk 0:02:50]}  Qxd5 {[%clk 0:03:00]} 3. Nc3 {[%clk 0:02:50]}  Qa5 {[%clk 0:03:00]} 4. d4 {[%clk 0:02:50]}  Nf6 {[%clk 0:03:00]} 5. Bc4 {[%clk 0:02:50]}  Bg4 {[%clk 0:02:57]} 6. f3 {[%clk 0:02:49]}  Be6 {[%clk 0:02:57]} 7. Bxe6 {[%clk 0:02:46]}  fxe6 {[%clk 0:02:58]} 8. f4 {[%clk 0:02:37]}  Nc6 {[%clk 0:02:58]} 9. Nf3 {[%clk 0:02:36]}  O-O-O {[%clk 0:02:57]} 10. Qe2 {[%clk 0:02:32]}  Nxd4 {[%clk 0:02:43]} 11. Nxd4 {[%clk 0:02:30]}  Rxd4 {[%clk 0:02:44]} 12. Qxe6+ {[%clk 0:02:31]}  Rd7 {[%clk 0:02:21]} 13. Be3 {[%clk 0:02:22]}  g6 {[%clk 0:01:48]} 14. Rd1 {[%clk 0:02:17]}  Qf5 {[%clk 0:01:45]} 15. Qxf5 {[%clk 0:02:11]}  gxf5 {[%clk 0:01:46]} 16. Rxd7 {[%clk 0:02:10]}  Kxd7 {[%clk 0:01:42]} 17. Ke2 {[%clk 0:02:09]}  e6 {[%clk 0:01:29]} 18. Rd1+ {[%clk 0:02:03]}  Kc6 {[%clk 0:01:25]} 19. a4 {[%clk 0:01:48]}  a6 {[%clk 0:01:24]} 20. b4 {[%clk 0:01:48]}  b5 {[%clk 0:01:24]} 21. axb5+ {[%clk 0:01:47]}  axb5 {[%clk 0:01:24]} 22. Ra1 {[%clk 0:01:44]}  Bxb4 {[%clk 0:01:19]} 23. Ra6+ {[%clk 0:01:37]}  Kb7 {[%clk 0:01:08]} 24. Ra7+ {[%clk 0:01:34]}  Kc6 {[%clk 0:01:08]} 25. Bd4 {[%clk 0:01:14]}  Rf8 {[%clk 0:00:59]} 26. Ra6+ {[%clk 0:01:11]}  Kd7 {[%clk 0:00:56]} 27. Nxb5 {[%clk 0:01:09]}  Nd5 {[%clk 0:00:56]} 28. g3 {[%clk 0:01:05]}  Bd6 {[%clk 0:00:20]} 29. c4 {[%clk 0:00:59]}  Nb4 {[%clk 0:00:19]} 30. Ra4 {[%clk 0:00:49]}  Nc6 {[%clk 0:00:18]} 31. c5 {[%clk 0:00:47]}  Be7 {[%clk 0:00:12]} 32. Be3 {[%clk 0:00:47]}  Rb8 {[%clk 0:00:10]} 33. Nc3 {[%clk 0:00:34]}  Rb2+ {[%clk 0:00:09]} 34. Kf3 {[%clk 0:00:34]}  Rb3 {[%clk 0:00:08]} 35. Rc4 {[%clk 0:00:30]}  Bf6 {[%clk 0:00:08]} 36. Bd2 {[%clk 0:00:21]}  Nd4+ {[%clk 0:00:06]} 37. Kf2 {[%clk 0:00:19]}  Nc6 {[%clk 0:00:05]} 38. Ne2 {[%clk 0:00:18]}  Rb2 {[%clk 0:00:05]} 39. Be3 {[%clk 0:00:18]}  e5 {[%clk 0:00:04]} 40. fxe5 {[%clk 0:00:18]}  Nxe5 {[%clk 0:00:05]} 41. Rd4+ {[%clk 0:00:18]}  Ke6 {[%clk 0:00:05]} 42. Rd2 {[%clk 0:00:19]}  Nc4 {[%clk 0:00:05]} 43. Rxb2 {[%clk 0:00:18]}  Bxb2 {[%clk 0:00:05]} 44. Nf4+ {[%clk 0:00:18]}  Ke5 {[%clk 0:00:05]} 45. h4 {[%clk 0:00:18]}  Ke4 {[%clk 0:00:05]} 46. Ng2 {[%clk 0:00:16]}  Nxe3 {[%clk 0:00:05]} 47. Nxe3 {[%clk 0:00:17]}  Bd4 {[%clk 0:00:05]} 0-1


[Site "https://www.chess.com"]

[Event "Titled Tuesday Blitz March 21 Late 2023"]
[White "Pinheiro, Iung Alicio de O."]
[Black "Fernandez Siles, Luis"]
[WhiteFideId "2104350"]
[BlackFideId "2209420"]
[WhiteElo "2283"]
[BlackElo "2186"]
[Result "1-0"]
[Round "11"]
[TimeControl "180+2"]
[Date "2023.03.21"]
[WhiteClock "0:00:16"]
[BlackClock "0:00:06"]

1. e4 {[%clk 0:03:00]}  c5 {[%clk 0:02:57]} 2. Nc3 {[%clk 0:03:00]}  Nc6 {[%clk 0:02:56]} 3. Bb5 {[%clk 0:02:56]}  Nd4 {[%clk 0:02:54]} 4. Bc4 {[%clk 0:02:52]}  g6 {[%clk 0:02:53]} 5. Nf3 {[%clk 0:02:48]}  Bg7 {[%clk 0:02:53]} 6. Nxd4 {[%clk 0:02:44]}  cxd4 {[%clk 0:02:54]} 7. Qf3 {[%clk 0:02:42]}  Nh6 {[%clk 0:02:53]} 8. d3 {[%clk 0:02:37]}  O-O {[%clk 0:02:50]} 9. Ne2 {[%clk 0:02:35]}  Ng4 {[%clk 0:02:49]} 10. Qg3 {[%clk 0:02:32]}  d6 {[%clk 0:02:42]} 11. h3 {[%clk 0:02:13]}  Nf6 {[%clk 0:02:34]} 12. Bb3 {[%clk 0:01:58]}  a5 {[%clk 0:02:28]} 13. a4 {[%clk 0:01:56]}  Nd7 {[%clk 0:02:13]} 14. f4 {[%clk 0:01:45]}  Nc5 {[%clk 0:02:10]} 15. Bc4 {[%clk 0:01:43]}  Qc7 {[%clk 0:01:54]} 16. Qf3 {[%clk 0:01:29]}  Bd7 {[%clk 0:01:33]} 17. b3 {[%clk 0:01:27]}  Bc6 {[%clk 0:01:17]} 18. Rb1 {[%clk 0:01:00]}  e6 {[%clk 0:01:16]} 19. O-O {[%clk 0:00:56]}  Rad8 {[%clk 0:01:07]} 20. Ng3 {[%clk 0:00:52]}  d5 {[%clk 0:01:06]} 21. exd5 {[%clk 0:00:52]}  exd5 {[%clk 0:00:56]} 22. Bb5 {[%clk 0:00:50]}  Bxb5 {[%clk 0:00:56]} 23. axb5 {[%clk 0:00:51]}  f5 {[%clk 0:00:33]} 24. Bd2 {[%clk 0:00:39]}  b6 {[%clk 0:00:32]} 25. Rfe1 {[%clk 0:00:36]}  Qd7 {[%clk 0:00:29]} 26. Nf1 {[%clk 0:00:34]}  Rfe8 {[%clk 0:00:27]} 27. Nh2 {[%clk 0:00:34]}  Qxb5 {[%clk 0:00:19]} 28. Rxe8+ {[%clk 0:00:32]}  Qxe8 {[%clk 0:00:20]} 29. Re1 {[%clk 0:00:30]}  Qd7 {[%clk 0:00:21]} 30. Qe2 {[%clk 0:00:28]}  Kf7 {[%clk 0:00:21]} 31. Nf3 {[%clk 0:00:28]}  Re8 {[%clk 0:00:20]} 32. Ng5+ {[%clk 0:00:27]}  Kf8 {[%clk 0:00:17]} 33. Nxh7+ {[%clk 0:00:27]}  Kf7 {[%clk 0:00:18]} 34. Ng5+ {[%clk 0:00:26]}  Kf8 {[%clk 0:00:18]} 35. Qd1 {[%clk 0:00:24]}  Rxe1+ {[%clk 0:00:13]} 36. Qxe1 {[%clk 0:00:25]}  Bf6 {[%clk 0:00:12]} 37. Qh4 {[%clk 0:00:20]}  Bxg5 {[%clk 0:00:11]} 38. fxg5 {[%clk 0:00:20]}  Qe6 {[%clk 0:00:10]} 39. Bf4 {[%clk 0:00:19]}  Qe2 {[%clk 0:00:08]} 40. Qh8+ {[%clk 0:00:18]}  Kf7 {[%clk 0:00:08]} 41. Qf6+ {[%clk 0:00:18]}  Ke8 {[%clk 0:00:07]} 42. Qxg6+ {[%clk 0:00:18]}  Kd7 {[%clk 0:00:07]} 43. Qxf5+ {[%clk 0:00:19]}  Kc6 {[%clk 0:00:06]} 44. g6 {[%clk 0:00:16]} 1-0


[Site "https://www.chess.com"]